Cogmind - Beta 17 @@@ ROGUE MODE // 2026.07.25 @ 17:06:37 Player: Niltras Result: Destroyed by Y-45 Defender with Beam Rifle Performance ------------- Evolutions (1) 500 Regions Visited (2) 400 Robots Destroyed (2) 10 Value Destroyed (21) 21 Prototype IDs (0) 0 Alien Tech Used (0) 0 Bonus (200) 200 TOTAL SCORE: 1131 Bonus ------- Pacifist 200 Cogmind --------- Core Integrity 0/400 Matter 234/300 Energy 98/100 System Corruption 0% Temperature Cool (9) Movement Core (50) Location -9/Materials Parts ------- > --- POWER (1) -------- (None) > --- PROPULSION (3) --- (None) > --- UTILITY (3) ------ Visual Processing Unit Signal Interpreter > --- WEAPON (2) ------- Mining Claw > --- INVENTORY (5) ---- Hover Unit Peak State ------------ > --- POWER ------------ Light Ion Engine > --- PROPULSION ------- Aluminum Leg Aluminum Leg Improved Aluminum Leg > --- UTILITY ---------- Visual Processing Unit Sensor Array Signal Interpreter > --- WEAPON ----------- Mining Claw > --- INVENTORY -------- Hover Unit [Rating: 10] Favorites ----------- Power Light Ion Engine Engine Light Ion Engine Propulsion Aluminum Leg Leg Aluminum Leg Utility Visual Processing Unit Device Sensor Array Processor Visual Processing Unit Weapon Mining Claw Slashing Weapon Mining Claw Build | -11 -10 -9 ------- Run | Yrd Mat Mat Slots Evolved 2 | . . 2 Power . | . . . Propulsion 1 | . . 1 Utility 1 | . . 1 Weapon . | . . . Parts Attached 8 | 3 1 4 Power 1 | 1 . . Engine 1 | 1 . . Core . | . . . Reactor . | . . . Propulsion 3 | 2 . 1 Treads . | . . . Leg 3 | 2 . 1 Wheel . | . . . Hover . | . . . Flight . | . . . Utility 3 | . 1 2 Device 1 | . . 1 Storage . | . . . Processor 2 | . 1 1 Hackware . | . . . Protection . | . . . Artifact . | . . . Weapon 1 | . . 1 Energy Gun . | . . . Energy Cannon . | . . . Ballistic Gun . | . . . Ballistic Cannon . | . . . Launcher . | . . . Special Weapon . | . . . Impact Weapon . | . . . Slashing Weapon 1 | . . 1 Piercing Weapon . | . . . Special Melee Weapon . | . . . Unidentified Prototypes . | . . . Parts Lost 5 | . . 5 Power 1 | . . 1 Propulsion 3 | . . 3 Utility 1 | . . 1 Weapon . | . . . Highest Loss Streak 4 | . . 4 To Critical Strikes . | . . . Average Backups . | . . 1 Power . | . . . Propulsion . | . . 1 Utility . | . . . Weapon . | . . . Tool/Special . | . . . Unused Backups 1 | . . 1 Power . | . . . Propulsion 1 | . . 1 Utility . | . . . Weapon . | . . . Tool/Special . | . . . Average Slot Usage (%) 57 | . 45 69 Engine 10 | . 14 6 Leg 27 | . 28 26 Device 3 | . . 7 Processor 11 | . 3 19 Slashing Weapon 5 | . . 9 Peak Build Rating 10 | 3 5 10 Average Rating 5 | 2 3 7 On Entrance 2 | . 3 5 Avg Prop Armor Cover (%) . | . . . Naked Turns . | . . . Heaviest Build 6 | 3 3 6 Greatest Support 33 | 20 20 33 Greatest Overweight (x) . | . . . Average Overweight (x) . | . . . Largest Inventory Capacity 5 | 5 5 5 Average Capacity 5 | 5 5 5 Most Carried 1 | . 1 1 Average Carried . | . . 1 Final Capacity 5 | 5 5 5 Final Carried 1 | . 1 1 Class Distribution -------------------- 64% | Mutant 30% | Assassin 5% | Scout Dominant Class ---------------- Mutant | -10/Materials Assassin | -9/Materials Resources | -11 -10 -9 ----------- Run | Yrd Mat Mat Matter Collected 189 | 100 . 89 Remotely . | . . . Salvage Created 42 | . . 42 Parts 4 | . . 4 Haulers Intercepted . | . . . Recyclers Shooed . | . . . Parts Field Recycled . | . . . Retrieved Matter . | . . . Parts Self-Destructed . | . . . Prevented . | . . . Parts Restored . | . . . Kills | -11 -10 -9 ------- Run | Yrd Mat Mat Combat Hostiles Destroyed 1 | . . 1 Melee 1 | . . 1 Classes Destroyed 2 | . . 2 Worker 1 | . . 1 Swarmer 1 | . . 1 Best Kill Streak 1 | . . 1 Combat Bots Only 1 | . . 1 Max Kills in Single Turn 1 | . . 1 Gunslinging . | . . . Exploded . | . . . Melee 1 | . . 1 Uniques/NPCs Destroyed . | . . . Combat | -11 -10 -9 -------- Run | Yrd Mat Mat Hostile Shots Fired 111 | . 23 88 Missed 42 | . 12 30 Hits 69 | . 11 58 Projectile 69 | . 11 58 Critical Strikes 6 | . . 6 Damage Taken 874 | . 147 727 Core 446 | . 43 403 Absorbed by Shields . | . . . Core Remaining (%) 91 | 100 82 . Volleys Fired . | . . . Largest . | . . . Hottest . | . . . Shots Fired . | . . . Gun . | . . . Cannon . | . . . Launcher . | . . . Special . | . . . Kinetic . | . . . Thermal . | . . . Explosive . | . . . Electromagnetic . | . . . Robot Hit Streak . | . . . Robot Miss Streak . | . . . Penetration Max . | . . . Secondary Targets . | . . . Shots Hit Robots 4 | . . 4 Core Hits 2 | . . 2 Critical Kills . | . . . Critical Parts Destroyed . | . . . Critical Strikes . | . . . Melee Attacks 10 | . . 10 Impact . | . . . Slashing 10 | . . 10 Piercing . | . . . Sneak Attacks 1 | . . 1 Combat Hostiles . | . . . Follow-up Attacks . | . . . Damage Inflicted 120 | . . 120 Guns . | . . . Cannons . | . . . Explosions . | . . . Melee 120 | . . 120 Ramming . | . . . Kinetic . | . . . Thermal . | . . . Explosive . | . . . Electromagnetic . | . . . Impact . | . . . Slashing 120 | . . 120 Piercing . | . . . Highest Corruption . | . . . Average Corruption . | . . . Corruption Purged . | . . . Corruption Blocked . | . . . Overload Shots . | . . . Overflow Damage 2 | . . 2 Projectiles . | . . . Explosions . | . . . Melee 2 | . . 2 Knockbacks . | . . . Impact . | . . . Kinetic . | . . . Secondary . | . . . Self-Inflicted Damage . | . . . Shots . | . . . Rammed . | . . . Targets Rammed . | . . . Kicked . | . . . Crushed . | . . . Highest Temperature 9 | . . 9 Average Temperature 3 | . . 3 Received Heat Transfer 381 | . 84 297 Siege Activations . | . . . Martial Activations . | . . . Shielding Activations . | . . . Robots Disrupted . | . . . Combat Hostiles . | . . . Robots Corrupted . | . . . Combat Hostiles . | . . . Parts Fried . | . . . Impact Corruptions . | . . . Robots Melted . | . . . Combat Hostiles . | . . . Parts Melted . | . . . Heat Transferred . | . . . Parts Sabotaged . | . . . Parts Stolen . | . . . Parts Stripped . | . . . Power Chain Reactions . | . . . Alert | -11 -10 -9 ------- Run | Yrd Mat Mat Maximum Alert Level . | . . . Low Security (%) 100 | 100 100 100 Level 1 . | . . . Level 2 . | . . . Level 3 . | . . . Level 4 . | . . . Level 5 . | . . . High Security . | . . . Max Security . | . . . Peak Influence 20 | . 15 20 Initial . | . . . Average 1 | . 2 2 Influence Increases 55 | . 15 40 Destroy 0b10 Robot/C 20 | . . 20 Destroy 0b10 Robot/NC 5 | . . 5 Disable Machine 15 | . . 15 Lose Combat Pursuer 15 | . 15 . Influence Decreases 35 | . 15 20 Time Decay 35 | . 15 20 Squads Dispatched 1 | . . 1 Investigation . | . . . Extermination . | . . . Reinforcement 1 | . . 1 Assault . | . . . Garrison . | . . . Intercept . | . . . Searches Triggered . | . . . Construction Impeded . | . . . Haulers Reinforced . | . . . Active Scanning Responses . | . . . Cargo Convoy Interrupts . | . . . Stealth | -11 -10 -9 --------- Run | Yrd Mat Mat Distress Signals 1 | . 1 . Communications Jammed . | . . . Distress Signals . | . . . Times Spotted 12 | . 4 8 Peak Tracking Total 7 | . 3 7 Tactical Retreats 1 | . 1 . Traps | -11 -10 -9 ------- Run | Yrd Mat Mat Traps Triggered . | . . . Indirectly . | . . . Trap Hack Attempts . | . . . Triggered . | . . . Disarmed . | . . . Reprogrammed . | . . . Reused . | . . . Traps Extracted . | . . . Installed . | . . . Triggered . | . . . Machines | -11 -10 -9 ---------- Run | Yrd Mat Mat Machines Disabled 1 | . . 1 Max in Single Turn 1 | . . 1 Machines Repaired . | . . . Machines Dismantled . | . . . Machines Sabotaged . | . . . Overloaded Fab Kills . | . . . Hacking | -11 -10 -9 --------- Run | Yrd Mat Mat Machines Accessed 1 | . 1 . Terminals 1 | . 1 . Fabricators . | . . . Repair Stations . | . . . Recycling Units . | . . . Scanalyzers . | . . . Garrison Access . | . . . Total Hacks 1 | . 1 . Successful . | . . . Failed 1 | . 1 . Catastrophic . | . . . Database Lockouts . | . . . Manual 1 | . 1 . Terminals 1 | . 1 . Fabricators . | . . . Repair Stations . | . . . Recycling Units . | . . . Scanalyzers . | . . . Garrison Access . | . . . Terminal Hacks . | . . . Fabricator Hacks . | . . . Repair Station Hacks . | . . . Recycling Unit Hacks . | . . . Scanalyzer . | . . . Garrison Access Hacks . | . . . Unauthorized Hacks . | . . . Terminals . | . . . Fabricators . | . . . Repair Stations . | . . . Recycling Units . | . . . Scanalyzers . | . . . Garrison Access . | . . . Data Cores Recovered . | . . . Used . | . . . Hacking Detections . | . . . Full Trace Events . | . . . Feedback Events . | . . . Feedback Blocked . | . . . Robot Schematics Acquired . | . . . Robots Built . | . . . Authchips . | . . . Time . | . . . Total Robot Build Rating . | . . . Part Schematics Acquired . | . . . Parts Built . | . . . Authchips . | . . . Time . | . . . Total Part Build Rating . | . . . Part Studies Acquired . | . . . Parts Repaired . | . . . Time . | . . . Parts Recycled . | . . . Recycled Matter . | . . . Retrieved Matter . | . . . Retrieved Components . | . . . Parts Scanalyzed . | . . . Part Schematics Acquired . | . . . Parts Damaged . | . . . Bothacking | -11 -10 -9 ------------ Run | Yrd Mat Mat Used RIF Installer . | . . . Robots Hacked . | . . . Non-combat . | . . . Combat . | . . . Robot Hacks Applied . | . . . Relay Couplers Released . | . . . Fabnet Peak Effective % . | . . . Robots Rewired . | . . . Allies Hacked . | . . . Hacks Repelled . | . . . Allies | -11 -10 -9 -------- Run | Yrd Mat Mat Total Allies . | . . . Largest Group . | . . . Highest-Rated Group . | . . . Highest-Rated Ally . | . . . Total Orders . | . . . Ally Attacks . | . . . Total Damage . | . . . Kills . | . . . Allies Corrupted . | . . . Allies Melted . | . . . Intel | -11 -10 -9 ------- Run | Yrd Mat Mat Active Infowar (turns) 203 | . 37 166 Optics 203 | . 37 166 Sensors 118 | . . 118 Robot Analysis Total . | . . . Derelict Logs Recovered . | . . . Drone Launches . | . . . Drone Recoveries . | . . . Exploration | -11 -10 -9 ------------- Run | Yrd Mat Mat Turns Passed 356 | 42 148 166 Spaces Moved 263 | 34 116 113 Core 12 | 4 . 8 Treads . | . . . Legs 251 | 30 116 105 Wheels . | . . . Hover . | . . . Flight . | . . . Fastest Speed 50 | 50 120 50 Average Speed 116 | 111 120 115 Slowest Speed 120 | 120 120 120 Overloaded Moves . | . . . Propulsion Burnouts . | . . . Robots Hopped . | . . . Potential Cave-ins . | . . . Cave-ins Triggered . | . . . Exploration Rate (%) 16 | 3 30 16 Regions Visited 2 Branch Regions . Pre-discovered Areas . | . . . Known Exits Taken . | . . . Unknown Exits Taken 2 | 1 1 . Scrap Searched . | . . . Spaces Dug . | . . . Terrain Destroyed . | . . . Melee . | . . . Projectile . | . . . AOE . | . . . Terrain Rammed . | . . . Walls Destroyed . | . . . Machines Disabled . | . . . Actions | -11 -10 -9 --------- Run | Yrd Mat Mat Total 287 | 36 124 127 Wait 7 | . 7 . Move 261 | 33 115 113 Hop . | . . . Pick Up 1 | . 1 . Fast Attach 8 | 3 1 4 Attach . | . . . Detach . | . . . Swap . | . . . Drop . | . . . Fire . | . . . Melee 10 | . . 10 Ram . | . . . Kick . | . . . Crush . | . . . Escape Stasis . | . . . Rewire . | . . . Trap . | . . . Miscellaneous . | . . . Route ------- -11/Scrapyard -10/Materials (discovered 2 exits: [*Mat] / [*Min]) -9/Materials (discovered 1 exit: [*Min]) History --------- Turn | Location | Event 4 | -11/Scrapyard | Discovered new exit (range 16) 43 | -11/Scrapyard | Entered Materials 60 | -10/Materials | Discovered new exit (range 13) 173 | -10/Materials | Discovered new exit (range 17) 191 | -10/Materials | Entered another Materials area 191 | -9/Materials | Evolved 2 slots: Propulsion x1, Utility x1 345 | -9/Materials | Core integrity fell below 50% 351 | -9/Materials | Core integrity fell below 20% 356 | -9/Materials | Discovered new exit (range 12) 357 | -9/Materials | Destroyed by Y-45 Defender with Beam Rifle Last Messages --------------- 00328_ ALERT: Hostiles spotted, dispatching reinforcements to Terminal M012. 00328_ O-16 Technician locks terminal. 00333_ S-10 Pest destroyed. 00336_ Destroyed Flight Unit. 00341_ R-06 Scavenger destroyed. 00342_ Acquired 14 matter. 00343_ Aluminum Leg destroyed. 00345_ Critical hit (Burn: +37). 00347_ Imp. Aluminum Leg destroyed. 00348_ Sensor Array destroyed. 00350_ R-06 Scavenger collects Lgt. Assault Rifle. 00350_ Y-45 Defender destroyed. 00351_ S-10 Pest destroyed. 00353_ R-06 Scavenger collects Lgt. Ion Engine. 00354_ Acquired 14 matter. 00354_ Critical hit (Burn: +37). 00356_ EXIT=FOUND 00357_ R-06 Scavenger collects Lgt. Ion Engine. Map ----- +----------------------------------------------------+ | ??????????????????????????????????? | | ??????????????????????????????????? | | ??????????????????????????????????? | | ??????????????????????????????????? | | ??????????????????????????????????? | | ??????????????????????????????????? | | ??????????????????????????????????? | | ??????????????????????????????????? | | ?????????###????????????#######???? | | ????????#"""????????????# ##### | | ??????##"!!!"#??????????# | | ??????#"" "???????????# | | ??????# ???????????# | | ??????# < ???????????# ##### | | ??????? ???????????#### ##???? | | ??????? ??????????????# #????? | | ???????? ??????????????# #????? | | ????????# #????######????# #????? | | ????????# #???##!!!!##???#!#????? | | ????????# #???#! !#???# #????? | | ????????# #???# =%= #???# #????? | | ???????## ##??##* ##### #????? | | ???????# ##### r Y #????? | | ???????# [s! Y #????? | | ???????# * =%* #????? | | ???????# @ =[[ #????? | | ???????# ##### #????? | | ???????###+###??#" #????? | | ????????????????#T "T" #?? | | ????????????????#" """ ?? | | ????????????????## ? | | ?????????????????# "T" ? | | ?????????????????#######+## | | ??????????????????????????## | | ???????????????????????????? ? | | ???????????????????????????? ?? | | ???????????????????????????? ?? | | ???????????????????????????? ?? | | ????????????????????????????#+##??? | | ??????????????????????????????????? | | ??????????????????????????????????? | | ??????????????????????????????????? | | ??????????????????????????????????? | | ??????????????????????????????????? | | ??????????????????????????????????? | | ??????????????????????????????????? | | ??????????????????????????????????? | | ??????????????????????????????????? | | ??????????????????????????????????? | | ??????????????????????????????????? | +----------------------------------------------------+ Best States ------------- Heat Dissipation 28 Energy Generation 10 Energy Capacity 125 Matter Stores 220 Matter Capacity 300 Sight Range 18 Robot Scan Range 14 Terrain Scan Density 10 Evasion (%) 55 Item Schematics ----------------- None Robot Schematics ------------------ None Fabricated ------------ Nothing Repaired ---------- Nothing Studied --------- None Alien Tech Used ----------------- None Achievements -------------- Spot Them First Challenges ------------ None Game ------ Seed AntisysPiercelightGuard Manual? 0 Play Time 00:06:49 Cumulative 104.8 hours Start 2026.07.25 @ 17:01:45 End 2026.07.25 @ 17:06:37 Sessions 1 Manual Loads 0 Difficulty Rogue Special Mode None Game No. 65 Rogue 6 Adventurer 16 Explorer 43 Win Type - Total 5 Types 3/0/1/1/0/0/0/0/0/0 Lore% 50 Gallery% 44 Achievement% 27 Wizard Run 0 Options --------- Layout 1 ASCII 0 Keyboard 0 Movement Numpad Keybinds 0 Fullscreen 1 Font 20/SmallcapsGlow Map View 50x35 Zoom Use 0% Tactical HUD 1 Map Filters NONE Filters NONE Steam 1 RUN: 51bb440d-7b92-4a4d-a526-43be1f935aaa